Body Name,Document Number,Service,Type of Expenditure,Invoice Date,Supplier Name,Cost to the Council (Amount Exc VAT),Month
EREWASH BOROUGH COUNCIL,15098,Homelessness                  ,Temporary Accommodation       ,15-Aug-2022,A38 WOODLANDS                           ,336.00,Aug-22
EREWASH BOROUGH COUNCIL,15099,Homelessness                  ,Temporary Accommodation       ,15-Aug-2022,A38 WOODLANDS                           ,854.00,Aug-22
EREWASH BOROUGH COUNCIL,14963,Homelessness                  ,Temporary Accommodation       ,27-Jun-2022,A38 WOODLANDS                           ,336.00,Aug-22
EREWASH BOROUGH COUNCIL,14644,Homelessness                  ,Temporary Accommodation       ,01-Aug-2022,A38 WOODLANDS                           ,336.00,Aug-22
EREWASH BOROUGH COUNCIL,14898,Homelessness                  ,Temporary Accommodation       ,08-Aug-2022,A38 WOODLANDS                           ,336.00,Aug-22
EREWASH BOROUGH COUNCIL,14643,Homelessness                  ,Temporary Accommodation       ,01-Aug-2022,A38 WOODLANDS                           ,854.00,Aug-22
EREWASH BOROUGH COUNCIL,14899,Homelessness                  ,Temporary Accommodation       ,08-Aug-2022,A38 WOODLANDS                           ,854.00,Aug-22
EREWASH BOROUGH COUNCIL,15106,Commissioned Projects         ,General Equipment             ,01-Jun-2022,ALL BEING WELL                          ,635.00,Aug-22
EREWASH BOROUGH COUNCIL,14152,Building Control Adv & Inform ,Contracted Services           ,13-Jul-2022,ALPHA PARTNER (MIDLANDS)  LIMITED       ,421.00,Aug-22
EREWASH BOROUGH COUNCIL,14160,Property and Estates          ,Reactive Maintenance          ,13-Jul-2022,ALPHA PARTNER (MIDLANDS)  LIMITED       ,285.00,Aug-22
EREWASH BOROUGH COUNCIL,14233,Property and Estates          ,Reactive Maintenance          ,15-Jul-2022,ALPHA PARTNER (MIDLANDS)  LIMITED       ,290.00,Aug-22
EREWASH BOROUGH COUNCIL,14169,Property and Estates          ,Reactive Maintenance          ,13-Jul-2022,ALPHA PARTNER (MIDLANDS)  LIMITED       ,310.00,Aug-22
EREWASH BOROUGH COUNCIL,14155,Property and Estates          ,Reactive Maintenance          ,13-Jul-2022,ALPHA PARTNER (MIDLANDS)  LIMITED       ,325.00,Aug-22
EREWASH BOROUGH COUNCIL,14162,Property and Estates          ,Reactive Maintenance          ,13-Jul-2022,ALPHA PARTNER (MIDLANDS)  LIMITED       ,365.00,Aug-22
EREWASH BOROUGH COUNCIL,14153,Property and Estates          ,Reactive Maintenance          ,13-Jul-2022,ALPHA PARTNER (MIDLANDS)  LIMITED       ,381.00,Aug-22
EREWASH BOROUGH COUNCIL,14232,Property and Estates          ,Reactive Maintenance          ,18-Jul-2022,ALPHA PARTNER (MIDLANDS)  LIMITED       ,470.00,Aug-22
EREWASH BOROUGH COUNCIL,14161,Property and Estates          ,Reactive Maintenance          ,13-Jul-2022,ALPHA PARTNER (MIDLANDS)  LIMITED       ,498.00,Aug-22
EREWASH BOROUGH COUNCIL,14086,Property and Estates          ,Reactive Maintenance          ,13-Jul-2022,ALPHA PARTNER (MIDLANDS)  LIMITED       ,948.00,Aug-22
EREWASH BOROUGH COUNCIL,14055,Economic Development          ,Project Grants                ,11-Jul-2022,ALPINE RESOURCING LTD                   ,"108,240.02",Aug-22
EREWASH BOROUGH COUNCIL,14882,Economic Development          ,Project Grants                ,31-Jul-2022,ALPINE RESOURCING LTD                   ,"2,000.00",Aug-22
EREWASH BOROUGH COUNCIL,14396,ICT Support Services          ,Equipment Leasing Charge      ,25-Jul-2022,ANNODATA LIMITED                        ,"2,261.62",Aug-22
EREWASH BOROUGH COUNCIL,14440,ICT Support Services          ,Office Paper                  ,20-Jul-2022,ANTALIS DOCUMENT SUPPLIES               ,402.50,Aug-22
EREWASH BOROUGH COUNCIL,14667,Trees Hedges Local Nature Res ,Contracted Services           ,31-Jul-2022,AQUAM WATER SERVICES LIMITED            ,517.90,Aug-22
EREWASH BOROUGH COUNCIL,15105,EBC Balance Sheet             ,AR Refunds Control Account    ,15-Aug-2022,REDACTED PERSONAL DATA,"1,425.00",Aug-22
EREWASH BOROUGH COUNCIL,14686,Planning                      ,Structural Property Works     ,29-Jul-2022,ARCADIS CONSULTING (UK) LTD             ,"22,539.00",Aug-22
EREWASH BOROUGH COUNCIL,14253,Revenues and Benefits         ,Software Licences             ,13-Jul-2022,ASCENDANT SOLUTIONS                     ,"12,810.00",Aug-22
EREWASH BOROUGH COUNCIL,14252,Council Tax Collection        ,Software Licences             ,13-Jul-2022,ASCENDANT SOLUTIONS                     ,"13,710.00",Aug-22
EREWASH BOROUGH COUNCIL,14857,Homelessness                  ,Temporary Accommodation       ,28-Jul-2022,ASCOT HOTEL                             ,420.00,Aug-22
EREWASH BOROUGH COUNCIL,14224,Homelessness                  ,Temporary Accommodation       ,14-Jul-2022,ASCOT HOTEL                             ,420.00,Aug-22
EREWASH BOROUGH COUNCIL,14856,Homelessness                  ,Temporary Accommodation       ,21-Jul-2022,ASCOT HOTEL                             ,420.00,Aug-22
EREWASH BOROUGH COUNCIL,14065,Arts Development              ,Special Events                ,08-Jul-2022,AVAGO CRAFTS                            ,400.00,Aug-22
EREWASH BOROUGH COUNCIL,14657,General Entertainment         ,Special Events                ,26-Jul-2022,B&B AUDIO                               ,"1,200.00",Aug-22
EREWASH BOROUGH COUNCIL,14182,Civic Transport               ,Hire Charges                  ,05-Jul-2022,B&B AUDIO                               ,900.00,Aug-22
EREWASH BOROUGH COUNCIL,14878,Planning                      ,Structural Property Works     ,25-Jul-2022,BAILY GARNER LLP                        ,"13,254.72",Aug-22
EREWASH BOROUGH COUNCIL,14879,ICT Support Services          ,Software Licences             ,31-Jul-2022,BOTTOMLINE TECHNOLOGIES LTD             ,"4,931.98",Aug-22
EREWASH BOROUGH COUNCIL,14480,ICT Support Services          ,Telephones                    ,22-Jul-2022,BRITISH TELECOMMUNICATIONS PLC          ,"1,762.18",Aug-22
EREWASH BOROUGH COUNCIL,15349,ICT Support Services          ,Telephones                    ,22-Aug-2022,BRITISH TELECOMMUNICATIONS PLC          ,"1,702.97",Aug-22
EREWASH BOROUGH COUNCIL,15097,Planning                      ,External Property Works       ,28-Jul-2022,BROWNE JACOBSON                         ,"1,291.67",Aug-22
EREWASH BOROUGH COUNCIL,14251,Green Space                   ,Materials/Consumables         ,15-Jul-2022,BROXAP LIMITED                          ,320.00,Aug-22
EREWASH BOROUGH COUNCIL,14406,Street Scene                  ,Repairs and Maintenance       ,20-Jul-2022,BUCHER MUNICIPAL LTD                    ,934.42,Aug-22
EREWASH BOROUGH COUNCIL,14190,Urban Renewal                 ,Agency Staff                  ,13-Jul-2022,BUCKINGHAM FUTURES LIMITED              ,"1,258.00",Aug-22
EREWASH BOROUGH COUNCIL,14356,Urban Renewal                 ,Agency Staff                  ,20-Jul-2022,BUCKINGHAM FUTURES LIMITED              ,"1,258.00",Aug-22
EREWASH BOROUGH COUNCIL,14847,Urban Renewal                 ,Agency Staff                  ,03-Aug-2022,BUCKINGHAM FUTURES LIMITED              ,909.50,Aug-22
EREWASH BOROUGH COUNCIL,14628,Urban Renewal                 ,Agency Staff                  ,27-Jul-2022,BUCKINGHAM FUTURES LIMITED              ,"1,258.00",Aug-22
EREWASH BOROUGH COUNCIL,14647,Occupational Health & Welfare ,Occupational Health Service   ,01-Aug-2022,BUPA HEALTH CLINICS                     ,435.32,Aug-22
EREWASH BOROUGH COUNCIL,14051,Street Scene                  ,Maintenance of Bus Shelters   ,08-Jul-2022,BUS SHELTER LTD                         ,"3,757.88",Aug-22
EREWASH BOROUGH COUNCIL,14421,Trees Hedges Local Nature Res ,Contracted Services           ,20-Jul-2022,CANOPY TREE SERVICES                    ,"15,520.00",Aug-22
EREWASH BOROUGH COUNCIL,14337,EBC Balance Sheet             ,Fuel Store                    ,12-Jul-2022,CERTAS ENERGY UK LIMITED T/A CARLTON FUE,"44,722.49",Aug-22
EREWASH BOROUGH COUNCIL,14954,ICT Support Services          ,Mobile Phones                 ,01-Aug-2022,CLASS AFFINITY PROJECTS LTD             ,"2,329.90",Aug-22
EREWASH BOROUGH COUNCIL,15664,Green Space                   ,Travelling and Subsistence    ,29-Aug-2022,CLICK TRAVEL LTD                        ,527.60,Aug-22
EREWASH BOROUGH COUNCIL,14485,Erewash Museum                ,Special Events                ,23-Jul-2022,CLIP CLOP PONY RIDES                    ,440.00,Aug-22
EREWASH BOROUGH COUNCIL,14849,Legal Services                ,"Stamp Duty,Search and Legal Fe",29-Jul-2022,CORNERSTONE BARRISTERS                  ,"3,415.00",Aug-22
EREWASH BOROUGH COUNCIL,14678,Green Space                   ,Materials/Consumables         ,27-Jul-2022,CROMWELL POLYTHENE LTD                  ,815.85,Aug-22
EREWASH BOROUGH COUNCIL,14618,Civic Transport               ,Hire Charges                  ,25-Jul-2022,CRUISE-IN-CONTROL LIMITED               ,"1,552.00",Aug-22
EREWASH BOROUGH COUNCIL,15314,General Entertainment         ,Special Events                ,19-Aug-2022,DEEP DOWN BRASS BAND                    ,450.00,Aug-22
EREWASH BOROUGH COUNCIL,14684,Household Waste Collection    ,Repairs and Maintenance       ,28-Jul-2022,DENNIS EAGLE LTD                        ,294.82,Aug-22
EREWASH BOROUGH COUNCIL,14660,Household Waste Collection    ,Repairs and Maintenance       ,27-Jul-2022,DENNIS EAGLE LTD                        ,294.82,Aug-22
EREWASH BOROUGH COUNCIL,14092,Kerbside Recycling Collection ,Repairs and Maintenance       ,12-Jul-2022,DENNIS EAGLE LTD                        ,688.08,Aug-22
EREWASH BOROUGH COUNCIL,14092,Kerbside Recycling Collection ,Repairs and Maintenance       ,12-Jul-2022,DENNIS EAGLE LTD                        ,416.65,Aug-22
EREWASH BOROUGH COUNCIL,14947,EBC Balance Sheet             ,NNDR Coll Fund Control Account,22-Aug-2022,"DEPT FOR LEVELLING UP,HOUSING&COMMUNITIE","859,667.00",Aug-22
EREWASH BOROUGH COUNCIL,14949,Non Domestic Rates Retention  ,NNDR Tariff                   ,09-Aug-2022,DERBY CITY COUNCIL                      ,"585,635.60",Aug-22
EREWASH BOROUGH COUNCIL,14951,Non Domestic Rates Retention  ,NNDR Tariff                   ,22-Aug-2022,DERBY CITY COUNCIL                      ,"520,564.97",Aug-22
EREWASH BOROUGH COUNCIL,15328,Regulatory and Housing Service,Disabled Facilities Grant     ,22-Aug-2022,DERBYSHIRE COUNTY COUNCIL...            ,"2,907.84",Aug-22
EREWASH BOROUGH COUNCIL,15329,Regulatory and Housing Service,Disabled Facilities Grant     ,04-Aug-2022,DERBYSHIRE COUNTY COUNCIL...            ,"17,055.40",Aug-22
EREWASH BOROUGH COUNCIL,14674,Regulatory and Housing Service,Disabled Facilities Grant     ,10-May-2022,DERBYSHIRE COUNTY COUNCIL...            ,"1,898.75",Aug-22
EREWASH BOROUGH COUNCIL,14676,Regulatory and Housing Service,Disabled Facilities Grant     ,10-May-2022,DERBYSHIRE COUNTY COUNCIL...            ,"1,898.75",Aug-22
EREWASH BOROUGH COUNCIL,14763,Regulatory and Housing Service,Disabled Facilities Grant     ,23-Jun-2022,DERBYSHIRE COUNTY COUNCIL...            ,"2,232.00",Aug-22
EREWASH BOROUGH COUNCIL,14673,Regulatory and Housing Service,Disabled Facilities Grant     ,10-May-2022,DERBYSHIRE COUNTY COUNCIL...            ,"3,375.00",Aug-22
EREWASH BOROUGH COUNCIL,14675,Regulatory and Housing Service,Disabled Facilities Grant     ,10-May-2022,DERBYSHIRE COUNTY COUNCIL...            ,"5,142.92",Aug-22
EREWASH BOROUGH COUNCIL,14765,Regulatory and Housing Service,Disabled Facilities Grant     ,12-Jul-2022,DERBYSHIRE COUNTY COUNCIL...            ,"6,289.07",Aug-22
EREWASH BOROUGH COUNCIL,14764,Regulatory and Housing Service,Disabled Facilities Grant     ,12-Jul-2022,DERBYSHIRE COUNTY COUNCIL...            ,"7,166.46",Aug-22
EREWASH BOROUGH COUNCIL,14672,Regulatory and Housing Service,Disabled Facilities Grant     ,23-Jun-2022,DERBYSHIRE COUNTY COUNCIL...            ,"18,584.55",Aug-22
EREWASH BOROUGH COUNCIL,14886,Regulatory and Housing Service,Disabled Facilities Grant     ,14-Jul-2022,DERBYSHIRE COUNTY COUNCIL...            ,"5,480.81",Aug-22
EREWASH BOROUGH COUNCIL,14888,Regulatory and Housing Service,Disabled Facilities Grant     ,06-Jul-2022,DERBYSHIRE COUNTY COUNCIL...            ,"6,338.60",Aug-22
EREWASH BOROUGH COUNCIL,14887,Regulatory and Housing Service,Disabled Facilities Grant     ,12-Jul-2022,DERBYSHIRE COUNTY COUNCIL...            ,"7,965.98",Aug-22
EREWASH BOROUGH COUNCIL,15070,Regulatory and Housing Service,Disabled Facilities Grant     ,17-Feb-2022,DERBYSHIRE COUNTY COUNCIL...            ,"6,344.10",Aug-22
EREWASH BOROUGH COUNCIL,15131,Regulatory and Housing Service,Disabled Facilities Grant     ,25-Jul-2022,DERBYSHIRE COUNTY COUNCIL...            ,"6,506.89",Aug-22
EREWASH BOROUGH COUNCIL,15110,Regulatory and Housing Service,Disabled Facilities Grant     ,29-Jun-2022,DERBYSHIRE COUNTY COUNCIL...            ,"7,753.70",Aug-22
EREWASH BOROUGH COUNCIL,15096,General Entertainment         ,Security                      ,25-Jul-2022,EFFECTIVE SECURITY SERVICES LTD         ,827.50,Aug-22
EREWASH BOROUGH COUNCIL,14237,Homelessness                  ,Homelessness-Lease Properties ,18-Jul-2022,EMH HOMES                               ,"1,142.62",Aug-22
EREWASH BOROUGH COUNCIL,14236,Homelessness                  ,Homelessness-Lease Properties ,18-Jul-2022,EMH HOMES                               ,"1,170.53",Aug-22
EREWASH BOROUGH COUNCIL,14235,Homelessness                  ,Homelessness-Lease Properties ,18-Jul-2022,EMH HOMES                               ,"1,240.06",Aug-22
EREWASH BOROUGH COUNCIL,14732,Homelessness                  ,Homelessness-Lease Properties ,13-Jul-2022,EMH HOMES                               ,"9,375.20",Aug-22
EREWASH BOROUGH COUNCIL,14732,Homelessness                  ,Homelessness-Lease Properties ,13-Jul-2022,EMH HOMES                               ,"2,343.70",Aug-22
EREWASH BOROUGH COUNCIL,14335,Homelessness                  ,Fees Costs and Expenses       ,07-Jul-2022,EMH HOMES                               ,405.30,Aug-22
EREWASH BOROUGH COUNCIL,14443,Revenues and Benefits         ,Stationery                    ,13-Jul-2022,ENCORE ENVELOPES                        ,825.00,Aug-22
EREWASH BOROUGH COUNCIL,14642,Household Waste Collection    ,Hire Charges                  ,29-Jul-2022,ENTERPRISE FLEX E RENT                  ,595.37,Aug-22
EREWASH BOROUGH COUNCIL,15305,EBC Balance Sheet             ,Payroll Coll Acc Labour Party ,22-Aug-2022,EREWASH LABOUR GROUP                    ,521.85,Aug-22
EREWASH BOROUGH COUNCIL,14268,Economic Development          ,Grants and Subscriptions      ,05-Jul-2022,EREWASH PARTNERSHIP LTD                 ,"19,625.00",Aug-22
EREWASH BOROUGH COUNCIL,14725,Commissioned Projects         ,Fees Costs and Expenses       ,01-Aug-2022,EUROTRUCK MIDLANDS LTD                  ,395.00,Aug-22
EREWASH BOROUGH COUNCIL,14373,Household Waste Collection    ,Agency Staff                  ,05-Jul-2022,EXTRA PERSONNEL LTD                     ,174.69,Aug-22
EREWASH BOROUGH COUNCIL,14709,Household Waste Collection    ,Agency Staff                  ,11-Jul-2022,EXTRA PERSONNEL LTD                     ,"8,149.79",Aug-22
EREWASH BOROUGH COUNCIL,14840,Household Waste Collection    ,Agency Staff                  ,18-Jul-2022,EXTRA PERSONNEL LTD                     ,"8,182.33",Aug-22
EREWASH BOROUGH COUNCIL,14837,Household Waste Collection    ,Agency Staff                  ,19-Jul-2022,EXTRA PERSONNEL LTD                     ,547.30,Aug-22
EREWASH BOROUGH COUNCIL,15040,Household Waste Collection    ,Agency Staff                  ,27-Jun-2022,EXTRA PERSONNEL LTD                     ,"7,949.64",Aug-22
EREWASH BOROUGH COUNCIL,14971,Household Waste Collection    ,Agency Staff                  ,25-Jul-2022,EXTRA PERSONNEL LTD                     ,"8,136.02",Aug-22
EREWASH BOROUGH COUNCIL,15273,Trade Waste                   ,Agency Staff                  ,01-Aug-2022,EXTRA PERSONNEL LTD                     ,546.49,Aug-22
EREWASH BOROUGH COUNCIL,14838,Trade Waste                   ,Agency Staff                  ,18-Jul-2022,EXTRA PERSONNEL LTD                     ,332.33,Aug-22
EREWASH BOROUGH COUNCIL,14711,Trade Waste                   ,Agency Staff                  ,11-Jul-2022,EXTRA PERSONNEL LTD                     ,546.49,Aug-22
EREWASH BOROUGH COUNCIL,15039,Trade Waste                   ,Agency Staff                  ,25-Jul-2022,EXTRA PERSONNEL LTD                     ,443.10,Aug-22
EREWASH BOROUGH COUNCIL,15041,Trade Waste                   ,Agency Staff                  ,27-Jun-2022,EXTRA PERSONNEL LTD                     ,546.49,Aug-22
EREWASH BOROUGH COUNCIL,14373,Kerbside Recycling Collection ,Agency Staff                  ,05-Jul-2022,EXTRA PERSONNEL LTD                     ,116.46,Aug-22
EREWASH BOROUGH COUNCIL,14367,Kerbside Recycling Collection ,Agency Staff                  ,27-Jun-2022,EXTRA PERSONNEL LTD                     ,"3,624.10",Aug-22
EREWASH BOROUGH COUNCIL,14709,Kerbside Recycling Collection ,Agency Staff                  ,11-Jul-2022,EXTRA PERSONNEL LTD                     ,"5,433.19",Aug-22
EREWASH BOROUGH COUNCIL,14840,Kerbside Recycling Collection ,Agency Staff                  ,18-Jul-2022,EXTRA PERSONNEL LTD                     ,"5,454.89",Aug-22
EREWASH BOROUGH COUNCIL,14837,Kerbside Recycling Collection ,Agency Staff                  ,19-Jul-2022,EXTRA PERSONNEL LTD                     ,364.86,Aug-22
EREWASH BOROUGH COUNCIL,15040,Kerbside Recycling Collection ,Agency Staff                  ,27-Jun-2022,EXTRA PERSONNEL LTD                     ,"5,299.76",Aug-22
EREWASH BOROUGH COUNCIL,14971,Kerbside Recycling Collection ,Agency Staff                  ,25-Jul-2022,EXTRA PERSONNEL LTD                     ,"5,424.01",Aug-22
EREWASH BOROUGH COUNCIL,15277,Green Space                   ,Agency Staff                  ,01-Aug-2022,EXTRA PERSONNEL LTD                     ,"2,365.53",Aug-22
EREWASH BOROUGH COUNCIL,15276,Green Space                   ,Agency Staff                  ,01-Aug-2022,EXTRA PERSONNEL LTD                     ,"2,633.77",Aug-22
EREWASH BOROUGH COUNCIL,14970,Green Space                   ,Agency Staff                  ,25-Jul-2022,EXTRA PERSONNEL LTD                     ,"3,026.03",Aug-22
EREWASH BOROUGH COUNCIL,14368,Green Space                   ,Agency Staff                  ,04-Jul-2022,EXTRA PERSONNEL LTD                     ,"2,527.88",Aug-22
EREWASH BOROUGH COUNCIL,14367,Green Space                   ,Agency Staff                  ,27-Jun-2022,EXTRA PERSONNEL LTD                     ,"3,624.11",Aug-22
EREWASH BOROUGH COUNCIL,14363,Green Space                   ,Agency Staff                  ,20-Jun-2022,EXTRA PERSONNEL LTD                     ,"2,177.62",Aug-22
EREWASH BOROUGH COUNCIL,14699,Green Space                   ,Agency Staff                  ,11-Jul-2022,EXTRA PERSONNEL LTD                     ,"2,455.80",Aug-22
EREWASH BOROUGH COUNCIL,14698,Green Space                   ,Agency Staff                  ,11-Jul-2022,EXTRA PERSONNEL LTD                     ,"2,265.12",Aug-22
EREWASH BOROUGH COUNCIL,14369,Green Space                   ,Agency Staff                  ,04-Jul-2022,EXTRA PERSONNEL LTD                     ,"3,257.16",Aug-22
EREWASH BOROUGH COUNCIL,14362,Green Space                   ,Agency Staff                  ,20-Jun-2022,EXTRA PERSONNEL LTD                     ,"3,351.62",Aug-22
EREWASH BOROUGH COUNCIL,14968,Green Space                   ,Agency Staff                  ,18-Jul-2022,EXTRA PERSONNEL LTD                     ,"2,407.33",Aug-22
EREWASH BOROUGH COUNCIL,14969,Green Space                   ,Agency Staff                  ,25-Jul-2022,EXTRA PERSONNEL LTD                     ,"2,533.35",Aug-22
EREWASH BOROUGH COUNCIL,14835,Green Space                   ,Agency Staff                  ,18-Jul-2022,EXTRA PERSONNEL LTD                     ,142.84,Aug-22
EREWASH BOROUGH COUNCIL,14841,Green Space                   ,Agency Staff                  ,18-Jul-2022,EXTRA PERSONNEL LTD                     ,"2,208.48",Aug-22
EREWASH BOROUGH COUNCIL,15042,Green Space                   ,Agency Staff                  ,27-Jun-2022,EXTRA PERSONNEL LTD                     ,"2,768.75",Aug-22
EREWASH BOROUGH COUNCIL,15277,Public Conveniences           ,Agency Staff                  ,01-Aug-2022,EXTRA PERSONNEL LTD                     ,500.00,Aug-22
EREWASH BOROUGH COUNCIL,14368,Public Conveniences           ,Agency Staff                  ,04-Jul-2022,EXTRA PERSONNEL LTD                     ,500.00,Aug-22
EREWASH BOROUGH COUNCIL,14367,Public Conveniences           ,Agency Staff                  ,27-Jun-2022,EXTRA PERSONNEL LTD                     ,500.00,Aug-22
EREWASH BOROUGH COUNCIL,14698,Public Conveniences           ,Agency Staff                  ,11-Jul-2022,EXTRA PERSONNEL LTD                     ,500.00,Aug-22
EREWASH BOROUGH COUNCIL,14362,Public Conveniences           ,Agency Staff                  ,20-Jun-2022,EXTRA PERSONNEL LTD                     ,500.00,Aug-22
EREWASH BOROUGH COUNCIL,14969,Public Conveniences           ,Agency Staff                  ,25-Jul-2022,EXTRA PERSONNEL LTD                     ,500.00,Aug-22
EREWASH BOROUGH COUNCIL,14841,Public Conveniences           ,Agency Staff                  ,18-Jul-2022,EXTRA PERSONNEL LTD                     ,500.00,Aug-22
EREWASH BOROUGH COUNCIL,15277,Street Scene                  ,Agency Staff                  ,01-Aug-2022,EXTRA PERSONNEL LTD                     ,"2,365.52",Aug-22
EREWASH BOROUGH COUNCIL,15276,Street Scene                  ,Agency Staff                  ,01-Aug-2022,EXTRA PERSONNEL LTD                     ,"2,633.78",Aug-22
EREWASH BOROUGH COUNCIL,14970,Street Scene                  ,Agency Staff                  ,25-Jul-2022,EXTRA PERSONNEL LTD                     ,"3,026.02",Aug-22
EREWASH BOROUGH COUNCIL,14368,Street Scene                  ,Agency Staff                  ,04-Jul-2022,EXTRA PERSONNEL LTD                     ,"2,527.88",Aug-22
EREWASH BOROUGH COUNCIL,14363,Street Scene                  ,Agency Staff                  ,20-Jun-2022,EXTRA PERSONNEL LTD                     ,"2,177.62",Aug-22
EREWASH BOROUGH COUNCIL,14699,Street Scene                  ,Agency Staff                  ,11-Jul-2022,EXTRA PERSONNEL LTD                     ,"2,455.80",Aug-22
EREWASH BOROUGH COUNCIL,14698,Street Scene                  ,Agency Staff                  ,11-Jul-2022,EXTRA PERSONNEL LTD                     ,"2,265.11",Aug-22
EREWASH BOROUGH COUNCIL,14369,Street Scene                  ,Agency Staff                  ,04-Jul-2022,EXTRA PERSONNEL LTD                     ,"3,257.16",Aug-22
EREWASH BOROUGH COUNCIL,14362,Street Scene                  ,Agency Staff                  ,20-Jun-2022,EXTRA PERSONNEL LTD                     ,"3,351.61",Aug-22
EREWASH BOROUGH COUNCIL,14968,Street Scene                  ,Agency Staff                  ,18-Jul-2022,EXTRA PERSONNEL LTD                     ,"2,407.32",Aug-22
EREWASH BOROUGH COUNCIL,14969,Street Scene                  ,Agency Staff                  ,25-Jul-2022,EXTRA PERSONNEL LTD                     ,"2,533.34",Aug-22
EREWASH BOROUGH COUNCIL,14835,Street Scene                  ,Agency Staff                  ,18-Jul-2022,EXTRA PERSONNEL LTD                     ,142.83,Aug-22
EREWASH BOROUGH COUNCIL,14841,Street Scene                  ,Agency Staff                  ,18-Jul-2022,EXTRA PERSONNEL LTD                     ,"2,208.48",Aug-22
EREWASH BOROUGH COUNCIL,15042,Street Scene                  ,Agency Staff                  ,27-Jun-2022,EXTRA PERSONNEL LTD                     ,"2,768.74",Aug-22
EREWASH BOROUGH COUNCIL,14748,Revenues and Benefits         ,Postages                      ,02-Aug-2022,FRAMA UK LIMITED                        ,"5,000.00",Aug-22
EREWASH BOROUGH COUNCIL,14733,Homelessness                  ,Homelessness-Lease Properties ,01-Jul-2022,FUTURES HOMESCAPE LTD                   ,"1,141.75",Aug-22
EREWASH BOROUGH COUNCIL,12956,Kerbside Recycling Collection ,Waste Disposal                ,31-May-2022,GAE SMITH HOLDINGS T/A CASEPAK          ,610.36,Aug-22
EREWASH BOROUGH COUNCIL,15295,Kerbside Recycling Collection ,Waste Disposal                ,27-Apr-2022,GAE SMITH HOLDINGS T/A CASEPAK          ,731.60,Aug-22
EREWASH BOROUGH COUNCIL,12960,Kerbside Recycling Collection ,Waste Disposal                ,31-May-2022,GAE SMITH HOLDINGS T/A CASEPAK          ,"19,021.44",Aug-22
EREWASH BOROUGH COUNCIL,13871,Kerbside Recycling Collection ,Waste Disposal                ,30-Jun-2022,GAE SMITH HOLDINGS T/A CASEPAK          ,"1,160.23",Aug-22
EREWASH BOROUGH COUNCIL,13872,Kerbside Recycling Collection ,Waste Disposal                ,30-Jun-2022,GAE SMITH HOLDINGS T/A CASEPAK          ,"20,209.22",Aug-22
EREWASH BOROUGH COUNCIL,12959,Kerbside Recycling Collection ,Waste Disposal                ,31-May-2022,GAE SMITH HOLDINGS T/A CASEPAK          ,"21,621.34",Aug-22
EREWASH BOROUGH COUNCIL,14481,Household Waste Collection    ,Bins                          ,25-Jul-2022,GLASDON UK  LIMITED                     ,"3,217.73",Aug-22
EREWASH BOROUGH COUNCIL,14834,Street Scene                  ,Contracted Services           ,31-Jul-2022,GO TRAFFIC MANAGEMENT                   ,945.00,Aug-22
EREWASH BOROUGH COUNCIL,14880,Green Space                   ,Materials/Consumables         ,26-Jun-2022,REDACTED PERSONAL DATA,324.30,Aug-22
EREWASH BOROUGH COUNCIL,15113,Green Space                   ,Materials/Consumables         ,18-Jul-2022,REDACTED PERSONAL DATA,"1,388.60",Aug-22
EREWASH BOROUGH COUNCIL,15313,Play Areas                    ,Materials/Consumables         ,29-Jul-2022,HAGSSMP                                 ,500.64,Aug-22
EREWASH BOROUGH COUNCIL,15132,Play Areas                    ,Materials/Consumables         ,26-Jul-2022,HAGSSMP                                 ,261.90,Aug-22
EREWASH BOROUGH COUNCIL,14651,Democratic Representation     ,Hire Charges                  ,20-Jul-2022,HALL'S TRAVEL                           ,320.00,Aug-22
EREWASH BOROUGH COUNCIL,14269,ICT Support Services          ,Security                      ,18-Jul-2022,HALO I.S.LTD                            ,"10,000.00",Aug-22
EREWASH BOROUGH COUNCIL,15375,Erewash Museum                ,Special Events                ,15-Aug-2022,HANDS ON MUSIC WORKSHOPS                ,300.00,Aug-22
EREWASH BOROUGH COUNCIL,15304,Personnel                     ,Recruitment Expenses          ,16-Jun-2022,HEMMING GROUP LTD                       ,625.00,Aug-22
EREWASH BOROUGH COUNCIL,15303,Planning                      ,Structural Property Works     ,28-Apr-2022,HEMMING GROUP LTD                       ,750.00,Aug-22
EREWASH BOROUGH COUNCIL,14638,Personnel                     ,Apprenticeship Levy           ,19-Aug-2022,HMRC CUMBERNAULD                        ,"1,924.00",Aug-22
EREWASH BOROUGH COUNCIL,14638,Personnel                     ,Apprenticeship Levy           ,19-Aug-2022,HMRC CUMBERNAULD                        ,"1,250.00",Aug-22
EREWASH BOROUGH COUNCIL,14636,EBC Balance Sheet             ,Payroll Coll Acc - Income Tax ,19-Aug-2022,HMRC CUMBERNAULD                        ,385.60,Aug-22
EREWASH BOROUGH COUNCIL,14638,EBC Balance Sheet             ,Payroll Coll Acc - Income Tax ,19-Aug-2022,HMRC CUMBERNAULD                        ,"64,254.96",Aug-22
EREWASH BOROUGH COUNCIL,15077,EBC Balance Sheet             ,Payroll Coll Acc - Income Tax ,31-Aug-2022,HMRC CUMBERNAULD                        ,304.80,Aug-22
EREWASH BOROUGH COUNCIL,14636,EBC Balance Sheet             ,Payroll Coll Acc National Ins ,19-Aug-2022,HMRC CUMBERNAULD                        ,489.18,Aug-22
EREWASH BOROUGH COUNCIL,14638,EBC Balance Sheet             ,Payroll Coll Acc National Ins ,19-Aug-2022,HMRC CUMBERNAULD                        ,"97,851.61",Aug-22
EREWASH BOROUGH COUNCIL,14638,EBC Balance Sheet             ,Payroll Coll Acc Student Loan ,19-Aug-2022,HMRC CUMBERNAULD                        ,"1,359.00",Aug-22
EREWASH BOROUGH COUNCIL,14931,Commissioned Projects         ,General Equipment             ,05-Aug-2022,HOPE Long Eaton                         ,555.00,Aug-22
EREWASH BOROUGH COUNCIL,14467,Legal Services                ,Agency Staff                  ,26-Jul-2022,HR ESSENTIALS LIMITED                   ,400.00,Aug-22
EREWASH BOROUGH COUNCIL,14260,Legal Services                ,Agency Staff                  ,19-Jul-2022,HR ESSENTIALS LIMITED                   ,400.00,Aug-22
EREWASH BOROUGH COUNCIL,14751,Legal Services                ,Agency Staff                  ,31-Jul-2022,HR ESSENTIALS LIMITED                   ,400.00,Aug-22
EREWASH BOROUGH COUNCIL,14640,ICT Support Services          ,Software Licences             ,26-Jul-2022,IDOX SOFTWARE LIMITED                   ,"6,386.98",Aug-22
EREWASH BOROUGH COUNCIL,14745,Household Waste Collection    ,Bins                          ,31-Jul-2022,IMPERIAL POLYTHENE                      ,"1,594.00",Aug-22
EREWASH BOROUGH COUNCIL,14745,Household Waste Collection    ,Bin Liners                    ,31-Jul-2022,IMPERIAL POLYTHENE                      ,"1,379.00",Aug-22
EREWASH BOROUGH COUNCIL,15061,Non-domestic Rates Collection ,Fees Costs and Expenses       ,10-Aug-2022,INFORM CPI LTD                          ,"1,540.00",Aug-22
EREWASH BOROUGH COUNCIL,14682,Non-domestic Rates Collection ,Fees Costs and Expenses       ,28-Jul-2022,INFORM CPI LTD                          ,520.00,Aug-22
EREWASH BOROUGH COUNCIL,14881,Erewash Museum                ,Exhibitions                   ,05-Aug-2022,INFORM PRINTED SOLUTIONS LIMITED        ,380.00,Aug-22
EREWASH BOROUGH COUNCIL,15491,Performance Management        ,Data Protection               ,25-Aug-2022,INFORMATION COMMISSIONER                ,"2,895.00",Aug-22
EREWASH BOROUGH COUNCIL,14708,Car Parking                   ,Credit/Debit Card Charges     ,30-Jul-2022,INTERNATIONAL PARKING SYSTEMS UK LTD    ,"2,362.08",Aug-22
EREWASH BOROUGH COUNCIL,14402,Household Waste Collection    ,Repairs and Maintenance       ,11-Jul-2022,J COATES (GARAGE SERVICES) LTD          ,458.63,Aug-22
EREWASH BOROUGH COUNCIL,14181,Green Space                   ,Contracted Services           ,14-Jul-2022,JAPANESE KNOTWEED LIMITED               ,927.00,Aug-22
EREWASH BOROUGH COUNCIL,15066,Arts Development              ,Special Events                ,09-Aug-2022,JELLYFISH THEATRE                       ,400.00,Aug-22
EREWASH BOROUGH COUNCIL,15066,Sports Devt Coaching & Courses,Project Grants                ,09-Aug-2022,JELLYFISH THEATRE                       ,400.00,Aug-22
EREWASH BOROUGH COUNCIL,14746,"Police, Crime Commissioner Com",Project Grants                ,28-Jul-2022,JNE SECURITY LIMITED                    ,980.00,Aug-22
EREWASH BOROUGH COUNCIL,14669,General Entertainment         ,Special Events                ,28-Jul-2022,JOKER ENTERTAINMENT                     ,639.00,Aug-22
EREWASH BOROUGH COUNCIL,14477,Homelessness                  ,Homelessness-Lease Properties ,25-Jul-2022,JP'S GROUNDS & MAINTENANCE SERVICES     ,375.00,Aug-22
EREWASH BOROUGH COUNCIL,14844,EBC Balance Sheet             ,Childcare Salary Sacrifice    ,05-Aug-2022,KIDDIVOUCHERS LTD                       ,543.00,Aug-22
EREWASH BOROUGH COUNCIL,14697,Front Line Support Services   ,Security                      ,31-Jul-2022,KINGS ARMOURED SECURITY SERVICES        ,510.00,Aug-22
EREWASH BOROUGH COUNCIL,14695,Car Parking                   ,Contracted Services           ,31-Jul-2022,KINGS ARMOURED SECURITY SERVICES        ,"1,592.10",Aug-22
EREWASH BOROUGH COUNCIL,15060,Commissioned Projects         ,Grants and Subscriptions      ,31-Mar-2022,KIRK HALLAM COMMUNITY HALL ASSOCIATION. ,272.50,Aug-22
EREWASH BOROUGH COUNCIL,15101,Treasury and Bank Charges     ,Bank Charges                  ,11-Aug-2022,LLOYDS BANK PLC                         ,857.05,Aug-22
EREWASH BOROUGH COUNCIL,15843,EBC Balance Sheet             ,Lloyds Credit Card Suspense   ,02-Aug-2022,LLOYDS BANK PLC                         ,773.68,Aug-22
EREWASH BOROUGH COUNCIL,15843,EBC Balance Sheet             ,Lloyds Credit Card Suspense   ,02-Aug-2022,LLOYDS BANK PLC                         ,"1,480.40",Aug-22
EREWASH BOROUGH COUNCIL,14397,Performance Management        ,Software Licences             ,13-Jul-2022,LOCAL GOVERNMENT ASSOCIATION            ,829.00,Aug-22
EREWASH BOROUGH COUNCIL,14758,Household Waste Collection    ,Tyres                         ,30-Jul-2022,LODGE TYRE COMPANY LTD                  ,"2,722.00",Aug-22
EREWASH BOROUGH COUNCIL,14758,Trade Waste                   ,Tyres                         ,30-Jul-2022,LODGE TYRE COMPANY LTD                  ,410.00,Aug-22
EREWASH BOROUGH COUNCIL,14758,Kerbside Recycling Collection ,Tyres                         ,30-Jul-2022,LODGE TYRE COMPANY LTD                  ,"3,050.00",Aug-22
EREWASH BOROUGH COUNCIL,14758,Green Space                   ,Tyres                         ,30-Jul-2022,LODGE TYRE COMPANY LTD                  ,146.65,Aug-22
EREWASH BOROUGH COUNCIL,14758,Street Scene                  ,Tyres                         ,30-Jul-2022,LODGE TYRE COMPANY LTD                  ,527.50,Aug-22
EREWASH BOROUGH COUNCIL,14484,Accountancy                   ,Agency Staff                  ,24-Jul-2022,MACILDOWIE RECRUITMENT EXPERTISE        ,918.69,Aug-22
EREWASH BOROUGH COUNCIL,15339,Green Space                   ,Repairs and Maintenance       ,22-Jul-2022,MACKWORTH  VEHICLE CONVERSION SPECIALIST,"1,204.70",Aug-22
EREWASH BOROUGH COUNCIL,14045,Household Waste Collection    ,Personal Protective Equipment ,08-Jul-2022,MAIN MAN SUPPLIES LTD                   ,483.51,Aug-22
EREWASH BOROUGH COUNCIL,14045,Kerbside Recycling Collection ,Personal Protective Equipment ,08-Jul-2022,MAIN MAN SUPPLIES LTD                   ,483.52,Aug-22
EREWASH BOROUGH COUNCIL,14726,Economic Development          ,Project Grants                ,31-Jul-2022,Market Curators Ltd                     ,"1,450.00",Aug-22
EREWASH BOROUGH COUNCIL,14726,Economic Development          ,Project Grants                ,31-Jul-2022,Market Curators Ltd                     ,"3,875.00",Aug-22
EREWASH BOROUGH COUNCIL,14726,Economic Development          ,Project Grants                ,31-Jul-2022,Market Curators Ltd                     ,"1,975.00",Aug-22
EREWASH BOROUGH COUNCIL,14035,Building Control - Fee Earning,Agency Staff                  ,06-Jul-2022,MATCHTECH GROUP (UK) LIMITED            ,825.00,Aug-22
EREWASH BOROUGH COUNCIL,14493,Building Control - Fee Earning,Agency Staff                  ,14-Jul-2022,MATCHTECH GROUP (UK) LIMITED            ,825.00,Aug-22
EREWASH BOROUGH COUNCIL,14689,Building Control - Fee Earning,Agency Staff                  ,27-Jul-2022,MATCHTECH GROUP (UK) LIMITED            ,825.00,Aug-22
EREWASH BOROUGH COUNCIL,14606,Building Control - Fee Earning,Agency Staff                  ,26-Jul-2022,MATCHTECH GROUP (UK) LIMITED            ,"1,650.00",Aug-22
EREWASH BOROUGH COUNCIL,14607,Building Control - Fee Earning,Agency Staff                  ,26-Jul-2022,MATCHTECH GROUP (UK) LIMITED            ,"1,650.00",Aug-22
EREWASH BOROUGH COUNCIL,14608,Building Control - Fee Earning,Agency Staff                  ,26-Jul-2022,MATCHTECH GROUP (UK) LIMITED            ,"1,650.00",Aug-22
EREWASH BOROUGH COUNCIL,14609,Building Control - Fee Earning,Agency Staff                  ,26-Jul-2022,MATCHTECH GROUP (UK) LIMITED            ,"1,650.00",Aug-22
EREWASH BOROUGH COUNCIL,14610,Building Control - Fee Earning,Agency Staff                  ,26-Jul-2022,MATCHTECH GROUP (UK) LIMITED            ,"1,650.00",Aug-22
EREWASH BOROUGH COUNCIL,14691,Building Control - Fee Earning,Agency Staff                  ,28-Jul-2022,MATCHTECH GROUP (UK) LIMITED            ,"1,567.50",Aug-22
EREWASH BOROUGH COUNCIL,14495,Building Control - Fee Earning,Agency Staff                  ,20-Jul-2022,MATCHTECH GROUP (UK) LIMITED            ,825.00,Aug-22
EREWASH BOROUGH COUNCIL,14932,General Entertainment         ,Special Events                ,25-Jul-2022,MATLOCK BAND                            ,280.00,Aug-22
EREWASH BOROUGH COUNCIL,14620,Toll Bar House                ,PPM Mechanical and Equipment  ,28-Jul-2022,MDB PLUMBING (NOTTM) LTD                ,284.32,Aug-22
EREWASH BOROUGH COUNCIL,14620,St Laurence Pre School        ,PPM Mechanical and Equipment  ,28-Jul-2022,MDB PLUMBING (NOTTM) LTD                ,478.82,Aug-22
EREWASH BOROUGH COUNCIL,14687,Household Waste Collection    ,Bins                          ,29-Jul-2022,MGB PLASTICS LTD                        ,"3,772.80",Aug-22
EREWASH BOROUGH COUNCIL,14687,Household Waste Collection    ,Bins                          ,29-Jul-2022,MGB PLASTICS LTD                        ,"2,692.50",Aug-22
EREWASH BOROUGH COUNCIL,14687,Kerbside Recycling Collection ,Bins                          ,29-Jul-2022,MGB PLASTICS LTD                        ,"3,065.40",Aug-22
EREWASH BOROUGH COUNCIL,14687,Kerbside Recycling Collection ,Bins                          ,29-Jul-2022,MGB PLASTICS LTD                        ,"5,385.00",Aug-22
EREWASH BOROUGH COUNCIL,14468,Property and Estates          ,Repairs and Maintenance       ,22-Jul-2022,MPC SERVICES (UK) LIMITED               ,591.50,Aug-22
EREWASH BOROUGH COUNCIL,14404,Pedestrian Zones - Ilk and LE ,Reactive Maintenance          ,19-Jul-2022,N B CONSTRUCTION                        ,495.00,Aug-22
EREWASH BOROUGH COUNCIL,14654,Democratic Representation     ,Subscription National As Cllrs,20-Jul-2022,NATIONAL ASSOCIATIONS OF COUNCILLORS    ,800.00,Aug-22
EREWASH BOROUGH COUNCIL,14650,Play Areas                    ,Materials/Consumables         ,27-Jul-2022,NIBRA SIGNS LTD                         ,871.51,Aug-22
EREWASH BOROUGH COUNCIL,15064,Homelessness                  ,Temporary Accommodation       ,08-Aug-2022,NOVOTEL NOTTINGHAM                      ,388.33,Aug-22
EREWASH BOROUGH COUNCIL,15128,Homelessness                  ,Temporary Accommodation       ,08-Aug-2022,NOVOTEL NOTTINGHAM                      ,650.00,Aug-22
EREWASH BOROUGH COUNCIL,15128,Homelessness                  ,Temporary Accommodation       ,08-Aug-2022,NOVOTEL NOTTINGHAM                      ,"1,462.63",Aug-22
EREWASH BOROUGH COUNCIL,14679,Housing Strategy              ,Consultants Fees              ,22-Jul-2022,OCEAN MEDIA GROUP LTD                   ,995.00,Aug-22
EREWASH BOROUGH COUNCIL,13975,Infec Disease & Food Poisoning,Fees Costs and Expenses       ,06-Jul-2022,OSBORNE RICHARDSON                      ,378.00,Aug-22
EREWASH BOROUGH COUNCIL,13976,Infec Disease & Food Poisoning,Fees Costs and Expenses       ,06-Jul-2022,OSBORNE RICHARDSON                      ,585.00,Aug-22
EREWASH BOROUGH COUNCIL,14605,Infec Disease & Food Poisoning,Contracted Services           ,27-Jul-2022,OYSTER PARTNERSHIP LTD                  ,608.60,Aug-22
EREWASH BOROUGH COUNCIL,13905,Infec Disease & Food Poisoning,Contracted Services           ,06-Jul-2022,OYSTER PARTNERSHIP LTD                  ,600.00,Aug-22
EREWASH BOROUGH COUNCIL,14166,Infec Disease & Food Poisoning,Contracted Services           ,13-Jul-2022,OYSTER PARTNERSHIP LTD                  ,614.72,Aug-22
EREWASH BOROUGH COUNCIL,14273,Infec Disease & Food Poisoning,Contracted Services           ,20-Jul-2022,OYSTER PARTNERSHIP LTD                  ,603.22,Aug-22
EREWASH BOROUGH COUNCIL,15063,Environmental Protection Act  ,Work In Default               ,28-Jul-2022,P G BOSWORTH LIMITED                    ,740.00,Aug-22
EREWASH BOROUGH COUNCIL,15062,Environmental Protection Act  ,Work In Default               ,28-Jul-2022,P G BOSWORTH LIMITED                    ,750.00,Aug-22
EREWASH BOROUGH COUNCIL,14688,Leisure Services              ,Contracted Services           ,21-Jul-2022,PARKWOOD LEISURE LTD                    ,"28,211.78",Aug-22
EREWASH BOROUGH COUNCIL,15365,EBC Balance Sheet             ,EBC Fit for Work Scheme       ,24-Aug-2022,PARKWOOD LEISURE LTD                    ,486.00,Aug-22
EREWASH BOROUGH COUNCIL,14929,Transport Trading Account     ,General Equipment             ,01-Aug-2022,PARTIC MOTOR SPARES LTD                 ,815.46,Aug-22
EREWASH BOROUGH COUNCIL,14927,Transport Trading Account     ,General Equipment             ,22-Jul-2022,PARTIC MOTOR SPARES LTD                 ,"6,345.22",Aug-22
EREWASH BOROUGH COUNCIL,14401,Household Waste Collection    ,Repairs and Maintenance       ,18-Jul-2022,PARTIC MOTOR SPARES LTD                 ,510.00,Aug-22
EREWASH BOROUGH COUNCIL,15260,Treasury and Bank Charges     ,Credit/Debit Card Charges     ,12-Aug-2022,PAY 360 LIMITED (CAPITA)                ,"4,388.70",Aug-22
EREWASH BOROUGH COUNCIL,15284,Trade Waste                   ,Trade Waste                   ,22-Aug-2022,REDACTED PERSONAL DATA,263.64,Aug-22
EREWASH BOROUGH COUNCIL,15118,Community Grants              ,Project Grants                ,16-Aug-2022,REDACTED PERSONAL DATA,500.00,Aug-22
EREWASH BOROUGH COUNCIL,15229,EBC Balance Sheet             ,Cashiers Suspense             ,18-Aug-2022,REDACTED PERSONAL DATA,270.21,Aug-22
EREWASH BOROUGH COUNCIL,15082,Transport Trading Account     ,Road Taxes                    ,15-Aug-2022,REDACTED PERSONAL DATA,290.00,Aug-22
EREWASH BOROUGH COUNCIL,15082,Household Waste Collection    ,Road Taxes                    ,15-Aug-2022,REDACTED PERSONAL DATA,300.00,Aug-22
EREWASH BOROUGH COUNCIL,15082,Green Space                   ,Road Taxes                    ,15-Aug-2022,REDACTED PERSONAL DATA,290.00,Aug-22
EREWASH BOROUGH COUNCIL,15082,Street Scene                  ,Road Taxes                    ,15-Aug-2022,REDACTED PERSONAL DATA,580.00,Aug-22
EREWASH BOROUGH COUNCIL,14658,General Entertainment         ,Special Events                ,25-Jul-2022,PB FIRE LTD                             ,410.00,Aug-22
EREWASH BOROUGH COUNCIL,14184,Civic Transport               ,Hire Charges                  ,10-Jul-2022,PB FIRE LTD                             ,535.00,Aug-22
EREWASH BOROUGH COUNCIL,14400,Cotmanhay Pavilion            ,PPM Mechanical and Equipment  ,19-Jul-2022,PEEL ELECTRICAL LTD                     ,315.34,Aug-22
EREWASH BOROUGH COUNCIL,13973,Property and Estates          ,Repairs and Maintenance       ,06-Jul-2022,PEEL ELECTRICAL LTD                     ,286.28,Aug-22
EREWASH BOROUGH COUNCIL,13972,Property and Estates          ,Repairs and Maintenance       ,06-Jul-2022,PEEL ELECTRICAL LTD                     ,677.30,Aug-22
EREWASH BOROUGH COUNCIL,14201,Property and Estates          ,Repairs and Maintenance       ,14-Jul-2022,PEEL ELECTRICAL LTD                     ,766.05,Aug-22
EREWASH BOROUGH COUNCIL,14399,Property and Estates          ,Repairs and Maintenance       ,19-Jul-2022,PEEL ELECTRICAL LTD                     ,326.40,Aug-22
EREWASH BOROUGH COUNCIL,14185,Civic Accommodation Ilkeston  ,PPM Mechanical and Equipment  ,14-Jul-2022,PEEL ELECTRICAL LTD                     ,389.66,Aug-22
EREWASH BOROUGH COUNCIL,14960,Green Space                   ,Materials/Consumables         ,09-Aug-2022,PENHAM EXCEL LIMITED                    ,300.00,Aug-22
EREWASH BOROUGH COUNCIL,14449,,,25-Jul-2022,PENHAM EXCEL LIMITED                    ,583.31,Aug-22
EREWASH BOROUGH COUNCIL,14870,,,08-Aug-2022,PENHAM EXCEL LIMITED                    ,368.84,Aug-22
EREWASH BOROUGH COUNCIL,14934,Economic Development          ,Project Grants                ,19-Jul-2022,PICK EVERARD                            ,"4,620.00",Aug-22
EREWASH BOROUGH COUNCIL,14701,Civic Transport               ,Hire Charges                  ,28-Jul-2022,PINNACLE EXECUTIVE CARS LIMITED         ,333.00,Aug-22
EREWASH BOROUGH COUNCIL,14271,Accountancy                   ,Consultants Fees              ,18-Jul-2022,PIXEL FINANCIAL MANAGEMENT LTD          ,788.00,Aug-22
EREWASH BOROUGH COUNCIL,14734,Homelessness                  ,Spend to Save                 ,28-Jul-2022,PLATFORM HOUSING GROUP                  ,474.94,Aug-22
EREWASH BOROUGH COUNCIL,13765,"Police, Crime Commissioner Com",Project Grants                ,01-Jul-2022,POLICE AND CRIME COMMISSIONER FOR DERBYS,"4,166.87",Aug-22
EREWASH BOROUGH COUNCIL,14719,Procurement Services          ,Software Licences             ,29-Jul-2022,PROACTIS                                ,"2,176.00",Aug-22
EREWASH BOROUGH COUNCIL,14046,Household Waste Collection    ,Personal Protective Equipment ,07-Jul-2022,PROTECTIVE WEAR SUPPLIES LTD            ,133.20,Aug-22
EREWASH BOROUGH COUNCIL,14046,Household Waste Collection    ,Personal Protective Equipment ,07-Jul-2022,PROTECTIVE WEAR SUPPLIES LTD            ,133.20,Aug-22
EREWASH BOROUGH COUNCIL,14046,Household Waste Collection    ,Personal Protective Equipment ,07-Jul-2022,PROTECTIVE WEAR SUPPLIES LTD            ,133.20,Aug-22
EREWASH BOROUGH COUNCIL,14046,Kerbside Recycling Collection ,Personal Protective Equipment ,07-Jul-2022,PROTECTIVE WEAR SUPPLIES LTD            ,133.20,Aug-22
EREWASH BOROUGH COUNCIL,14046,Kerbside Recycling Collection ,Personal Protective Equipment ,07-Jul-2022,PROTECTIVE WEAR SUPPLIES LTD            ,133.20,Aug-22
EREWASH BOROUGH COUNCIL,14046,Kerbside Recycling Collection ,Personal Protective Equipment ,07-Jul-2022,PROTECTIVE WEAR SUPPLIES LTD            ,133.20,Aug-22
EREWASH BOROUGH COUNCIL,14255,Insurances                    ,Uninsured Risks               ,06-Jul-2022,PROTECTOR INSURANCE                     ,"1,000.00",Aug-22
EREWASH BOROUGH COUNCIL,14736,Economic Development          ,Contracted Services           ,01-Aug-2022,PROXIMITY FUTURES T/A ELEPHANT WIFI     ,303.33,Aug-22
EREWASH BOROUGH COUNCIL,15363,EBC Balance Sheet             ,Payroll Coll Acc - AVCS       ,24-Aug-2022,PRUDENTIAL                              ,"1,227.60",Aug-22
EREWASH BOROUGH COUNCIL,14670,Economic Development          ,Training                      ,09-Mar-2022,QA Ltd                                  ,705.25,Aug-22
EREWASH BOROUGH COUNCIL,14926,Building Control Adv & Inform ,Contracted Services           ,01-Aug-2022,RANSOMWOOD ESTATES UK LIMITED           ,575.20,Aug-22
EREWASH BOROUGH COUNCIL,14959,Building Control - Fee Earning,Agency Staff                  ,29-Jul-2022,REED SPECIALIST RECRUITMENT LTD         ,476.06,Aug-22
EREWASH BOROUGH COUNCIL,14491,Building Control - Fee Earning,Agency Staff                  ,08-Jul-2022,REED SPECIALIST RECRUITMENT LTD         ,673.42,Aug-22
EREWASH BOROUGH COUNCIL,14492,Building Control - Fee Earning,Agency Staff                  ,15-Jul-2022,REED SPECIALIST RECRUITMENT LTD         ,674.88,Aug-22
EREWASH BOROUGH COUNCIL,14743,Building Control - Fee Earning,Agency Staff                  ,22-Jul-2022,REED SPECIALIST RECRUITMENT LTD         ,539.90,Aug-22
EREWASH BOROUGH COUNCIL,14049,Revenues and Benefits         ,Postages                      ,06-Jul-2022,ROYAL MAIL GROUP LTD.                   ,360.00,Aug-22
EREWASH BOROUGH COUNCIL,14241,Revenues and Benefits         ,Postages                      ,13-Jul-2022,ROYAL MAIL GROUP LTD.                   ,"1,205.64",Aug-22
EREWASH BOROUGH COUNCIL,14730,Revenues and Benefits         ,Postages                      ,27-Jul-2022,ROYAL MAIL GROUP LTD.                   ,"1,451.25",Aug-22
EREWASH BOROUGH COUNCIL,14245,Green Space                   ,Repairs and Maintenance       ,15-Jul-2022,RUSSELLS (KIRBYMOORSIDE) LIMITED        ,764.12,Aug-22
EREWASH BOROUGH COUNCIL,14877,Green Space                   ,Metered Water                 ,01-Aug-2022,SCOTTISH WATER BUSINESS STREAM LIMITED  ,"1,691.43",Aug-22
EREWASH BOROUGH COUNCIL,14877,Public Conveniences           ,Metered Water                 ,01-Aug-2022,SCOTTISH WATER BUSINESS STREAM LIMITED  ,"1,040.24",Aug-22
EREWASH BOROUGH COUNCIL,14877,Car Parking                   ,Unmetered Water               ,01-Aug-2022,SCOTTISH WATER BUSINESS STREAM LIMITED  ,"23,171.90",Aug-22
EREWASH BOROUGH COUNCIL,14877,Ilkeston Market               ,Unmetered Water               ,01-Aug-2022,SCOTTISH WATER BUSINESS STREAM LIMITED  ,"1,962.12",Aug-22
EREWASH BOROUGH COUNCIL,14877,Merlin Way Depot              ,Metered Water                 ,01-Aug-2022,SCOTTISH WATER BUSINESS STREAM LIMITED  ,"1,591.22",Aug-22
EREWASH BOROUGH COUNCIL,14877,Toll Bar House                ,Metered Water                 ,01-Aug-2022,SCOTTISH WATER BUSINESS STREAM LIMITED  ,425.56,Aug-22
EREWASH BOROUGH COUNCIL,14877,Sandiacre Friesland Sports Ctr,Metered Water                 ,01-Aug-2022,SCOTTISH WATER BUSINESS STREAM LIMITED  ,615.31,Aug-22
EREWASH BOROUGH COUNCIL,14416,Shopmobility - Long Eaton     ,Maintenance of Equipment      ,21-Jul-2022,SEACROFT MOBILITY LTD                   ,275.00,Aug-22
EREWASH BOROUGH COUNCIL,14015,"Police, Crime Commissioner Com",Project Grants                ,07-Jul-2022,SOUTH DERBYSHIRE CVS.                   ,"4,000.00",Aug-22
EREWASH BOROUGH COUNCIL,14262,Kerbside Recycling Collection ,Waste Disposal                ,15-Jul-2022,STANTON RECYCLING LIMITED               ,328.97,Aug-22
EREWASH BOROUGH COUNCIL,15056,Household Waste Collection    ,Repairs and Maintenance       ,24-Feb-2022,STEELCRAFT FABRICATIONS                 ,228.00,Aug-22
EREWASH BOROUGH COUNCIL,15057,Household Waste Collection    ,Repairs and Maintenance       ,24-Feb-2022,STEELCRAFT FABRICATIONS                 ,288.00,Aug-22
EREWASH BOROUGH COUNCIL,15056,Trade Waste                   ,Repairs and Maintenance       ,24-Feb-2022,STEELCRAFT FABRICATIONS                 ,228.00,Aug-22
EREWASH BOROUGH COUNCIL,15057,Trade Waste                   ,Repairs and Maintenance       ,24-Feb-2022,STEELCRAFT FABRICATIONS                 ,288.00,Aug-22
EREWASH BOROUGH COUNCIL,15056,Kerbside Recycling Collection ,Repairs and Maintenance       ,24-Feb-2022,STEELCRAFT FABRICATIONS                 ,228.00,Aug-22
EREWASH BOROUGH COUNCIL,15057,Kerbside Recycling Collection ,Repairs and Maintenance       ,24-Feb-2022,STEELCRAFT FABRICATIONS                 ,288.00,Aug-22
EREWASH BOROUGH COUNCIL,15056,Green Space                   ,Repairs and Maintenance       ,24-Feb-2022,STEELCRAFT FABRICATIONS                 ,228.00,Aug-22
EREWASH BOROUGH COUNCIL,15057,Green Space                   ,Repairs and Maintenance       ,24-Feb-2022,STEELCRAFT FABRICATIONS                 ,288.00,Aug-22
EREWASH BOROUGH COUNCIL,15056,Street Scene                  ,Repairs and Maintenance       ,24-Feb-2022,STEELCRAFT FABRICATIONS                 ,228.00,Aug-22
EREWASH BOROUGH COUNCIL,15057,Street Scene                  ,Repairs and Maintenance       ,24-Feb-2022,STEELCRAFT FABRICATIONS                 ,288.00,Aug-22
EREWASH BOROUGH COUNCIL,14084,Planning                      ,Structural Property Works     ,12-Jul-2022,Survey and Mapping UK Ltd               ,425.00,Aug-22
EREWASH BOROUGH COUNCIL,14085,Planning                      ,Structural Property Works     ,12-Jul-2022,Survey and Mapping UK Ltd               ,625.00,Aug-22
EREWASH BOROUGH COUNCIL,14031,Development Control           ,Consultants Fees              ,30-Jun-2022,SYMONDS AND SAMPSON                     ,400.00,Aug-22
EREWASH BOROUGH COUNCIL,14346,Planning Policy               ,Consultants Fees              ,14-Jul-2022,SYSTRA                                  ,"12,578.00",Aug-22
EREWASH BOROUGH COUNCIL,14681,Green Space                   ,Contracted Services           ,28-Jul-2022,T H HEATH  CONTRACTS  LTD               ,825.68,Aug-22
EREWASH BOROUGH COUNCIL,14680,Green Space                   ,Contracted Services           ,28-Jul-2022,T H HEATH  CONTRACTS  LTD               ,"3,160.78",Aug-22
EREWASH BOROUGH COUNCIL,14911,Green Space                   ,Contracted Services           ,31-Jul-2022,T H HEATH  CONTRACTS  LTD               ,"3,605.00",Aug-22
EREWASH BOROUGH COUNCIL,14912,Allotments                    ,Contracted Services           ,31-Jul-2022,T H HEATH  CONTRACTS  LTD               ,653.00,Aug-22
EREWASH BOROUGH COUNCIL,14411,Toll Bar House                ,Alarms Planned Maintenence    ,20-Jul-2022,TECSERV UK                              ,256.76,Aug-22
EREWASH BOROUGH COUNCIL,15089,Planning                      ,External Property Works       ,31-Jul-2022,THE LAND REFERENCING COMPANY LTD        ,"2,839.90",Aug-22
EREWASH BOROUGH COUNCIL,15839,Green Space                   ,Fuel                          ,31-Aug-2022,THE RIGHT FUELCARD COMPANY LTD          ,"1,155.74",Aug-22
EREWASH BOROUGH COUNCIL,14843,Registration of Electors      ,Subscriptions                 ,01-Aug-2022,THOMSON REUTERS                         ,314.00,Aug-22
EREWASH BOROUGH COUNCIL,15287,Personnel                     ,Recruitment Expenses          ,12-Aug-2022,TILE HILL EXECUTIVE RECRUITMENT         ,"6,750.00",Aug-22
EREWASH BOROUGH COUNCIL,14357,Erewash Museum                ,Electricity                   ,14-Jul-2022,TOTALENERGIES GAS & POWER LTD           ,261.55,Aug-22
EREWASH BOROUGH COUNCIL,13306,Erewash Museum                ,Electricity                   ,14-Jun-2022,TOTALENERGIES GAS & POWER LTD           ,276.24,Aug-22
EREWASH BOROUGH COUNCIL,14357,Green Space                   ,Electricity                   ,14-Jul-2022,TOTALENERGIES GAS & POWER LTD           ,725.32,Aug-22
EREWASH BOROUGH COUNCIL,14357,Green Space                   ,Electricity                   ,14-Jul-2022,TOTALENERGIES GAS & POWER LTD           ,911.79,Aug-22
EREWASH BOROUGH COUNCIL,14374,Green Space                   ,Electricity                   ,14-Jul-2022,TOTALENERGIES GAS & POWER LTD           ,779.91,Aug-22
EREWASH BOROUGH COUNCIL,13306,Green Space                   ,Electricity                   ,14-Jun-2022,TOTALENERGIES GAS & POWER LTD           ,"1,298.07",Aug-22
EREWASH BOROUGH COUNCIL,13306,Green Space                   ,Electricity                   ,14-Jun-2022,TOTALENERGIES GAS & POWER LTD           ,753.84,Aug-22
EREWASH BOROUGH COUNCIL,14195,Green Space                   ,Gas                           ,14-Jul-2022,TOTALENERGIES GAS & POWER LTD           ,371.25,Aug-22
EREWASH BOROUGH COUNCIL,14357,Public Conveniences           ,Electricity                   ,14-Jul-2022,TOTALENERGIES GAS & POWER LTD           ,532.83,Aug-22
EREWASH BOROUGH COUNCIL,13306,Public Conveniences           ,Electricity                   ,14-Jun-2022,TOTALENERGIES GAS & POWER LTD           ,601.66,Aug-22
EREWASH BOROUGH COUNCIL,14357,CCTV - Ilkeston and Long Eaton,Electricity                   ,14-Jul-2022,TOTALENERGIES GAS & POWER LTD           ,350.98,Aug-22
EREWASH BOROUGH COUNCIL,13306,CCTV - Ilkeston and Long Eaton,Electricity                   ,14-Jun-2022,TOTALENERGIES GAS & POWER LTD           ,361.50,Aug-22
EREWASH BOROUGH COUNCIL,14357,Car Parking                   ,Electricity                   ,14-Jul-2022,TOTALENERGIES GAS & POWER LTD           ,667.82,Aug-22
EREWASH BOROUGH COUNCIL,13306,Car Parking                   ,Electricity                   ,14-Jun-2022,TOTALENERGIES GAS & POWER LTD           ,718.97,Aug-22
EREWASH BOROUGH COUNCIL,14357,Ilkeston Market               ,Electricity                   ,14-Jul-2022,TOTALENERGIES GAS & POWER LTD           ,326.32,Aug-22
EREWASH BOROUGH COUNCIL,13306,Ilkeston Market               ,Electricity                   ,14-Jun-2022,TOTALENERGIES GAS & POWER LTD           ,350.42,Aug-22
EREWASH BOROUGH COUNCIL,14357,Shopmobility - Long Eaton     ,Electricity                   ,14-Jul-2022,TOTALENERGIES GAS & POWER LTD           ,279.57,Aug-22
EREWASH BOROUGH COUNCIL,13306,Shopmobility - Long Eaton     ,Electricity                   ,14-Jun-2022,TOTALENERGIES GAS & POWER LTD           ,305.71,Aug-22
EREWASH BOROUGH COUNCIL,14374,Merlin Way Depot              ,Electricity                   ,14-Jul-2022,TOTALENERGIES GAS & POWER LTD           ,"1,219.56",Aug-22
EREWASH BOROUGH COUNCIL,14374,Civic Accommodation Long Eaton,Electricity                   ,14-Jul-2022,TOTALENERGIES GAS & POWER LTD           ,"1,535.25",Aug-22
EREWASH BOROUGH COUNCIL,14195,Civic Accommodation Long Eaton,Gas                           ,14-Jul-2022,TOTALENERGIES GAS & POWER LTD           ,334.18,Aug-22
EREWASH BOROUGH COUNCIL,14357,Civic Accommodation Ilkeston  ,Electricity                   ,14-Jul-2022,TOTALENERGIES GAS & POWER LTD           ,323.55,Aug-22
EREWASH BOROUGH COUNCIL,14374,Civic Accommodation Ilkeston  ,Electricity                   ,14-Jul-2022,TOTALENERGIES GAS & POWER LTD           ,"1,301.22",Aug-22
EREWASH BOROUGH COUNCIL,13306,Civic Accommodation Ilkeston  ,Electricity                   ,14-Jun-2022,TOTALENERGIES GAS & POWER LTD           ,341.93,Aug-22
EREWASH BOROUGH COUNCIL,14195,Civic Accommodation Ilkeston  ,Gas                           ,14-Jul-2022,TOTALENERGIES GAS & POWER LTD           ,252.97,Aug-22
EREWASH BOROUGH COUNCIL,14195,Civic Accommodation Ilkeston  ,Gas                           ,14-Jul-2022,TOTALENERGIES GAS & POWER LTD           ,542.20,Aug-22
EREWASH BOROUGH COUNCIL,14357,Toll Bar House                ,Electricity                   ,14-Jul-2022,TOTALENERGIES GAS & POWER LTD           ,629.28,Aug-22
EREWASH BOROUGH COUNCIL,13306,Toll Bar House                ,Electricity                   ,14-Jun-2022,TOTALENERGIES GAS & POWER LTD           ,972.16,Aug-22
EREWASH BOROUGH COUNCIL,14374,Sandiacre Friesland Sports Ctr,Electricity                   ,14-Jul-2022,TOTALENERGIES GAS & POWER LTD           ,608.70,Aug-22
EREWASH BOROUGH COUNCIL,14729,Transport Trading Account     ,Software Licences             ,14-Jul-2022,TRAPEZE GROUP (UK) LTD                  ,"4,626.79",Aug-22
EREWASH BOROUGH COUNCIL,14662,General Entertainment         ,Special Events                ,25-Jul-2022,REDACTED PERSONAL DATA,350.00,Aug-22
EREWASH BOROUGH COUNCIL,14389,Green Space                   ,Materials/Consumables         ,22-Jul-2022,TUDOR ENVIRONMENTAL                     ,354.20,Aug-22
EREWASH BOROUGH COUNCIL,15515,Non Ring Fenced Govt Grants   ,Miscellaneous Government Grant,11-Aug-2022,UK HEALTH SECURITY AGENCY (UKHSA)       ,"12,579.66",Aug-22
EREWASH BOROUGH COUNCIL,15515,EBC Balance Sheet             ,COVID19 Test and Trace        ,11-Aug-2022,UK HEALTH SECURITY AGENCY (UKHSA)       ,"22,000.00",Aug-22
EREWASH BOROUGH COUNCIL,15362,EBC Balance Sheet             ,Payroll Coll Acc - Trade Union,24-Aug-2022,UNISON                                  ,336.45,Aug-22
EREWASH BOROUGH COUNCIL,14627,Homelessness                  ,Temporary Accommodation       ,28-Jul-2022,VICTORIA PARK HOTEL                     ,472.00,Aug-22
EREWASH BOROUGH COUNCIL,14420,Green Space                   ,Materials/Consumables         ,08-Jul-2022,VIKING DIRECT                           ,559.92,Aug-22
EREWASH BOROUGH COUNCIL,14663,General Entertainment         ,Special Events                ,28-Jul-2022,WHISKERS AND WINGS                      ,300.00,Aug-22
EREWASH BOROUGH COUNCIL,14261,Council Tax Collection        ,Fees Costs and Expenses       ,19-Jul-2022,WILKIN CHAPMAN LLP                      ,788.00,Aug-22
EREWASH BOROUGH COUNCIL,14704,Council Tax Collection        ,Fees Costs and Expenses       ,01-Aug-2022,WILKIN CHAPMAN LLP                      ,500.00,Aug-22
EREWASH BOROUGH COUNCIL,14930,Statement of Accounts         ,Valuation Fees                ,04-Aug-2022,WILKS HEAD & EVE LTD                    ,"6,305.00",Aug-22
EREWASH BOROUGH COUNCIL,14612,ICT Support Services          ,Data Lines                    ,26-Jul-2022,ZEN INTERNET LIMITED                    ,"1,367.01",Aug-22
EREWASH BOROUGH COUNCIL,14875,Insurances                    ,Uninsured Risks               ,30-Jul-2022,ZURICH MUNICIPAL                        ,650.00,Aug-22
